fUSD/lending_fUSD_20240513
["ID","MTS","AMOUNT","RATE_DAILY","PERIOD"]
[326932965,1715614243700,-3064.72,0.00012879,2]
[326932966,1715614243710,-3064.72,0.00012879,2]
[326932967,1715614243719,-3064.72,0.00012879,2]
[326932968,1715614243728,-3064.72,0.00012879,2]
[326932969,1715614243738,-3064.72,0.00012879,2]
[326932970,1715614243747,-3064.72,0.00012879,2]
[326932971,1715614243756,-500.0,0.00012879,2]
[326932972,1715614243766,-500.0,0.00012879,2]
[326932973,1715614243775,-500.0,0.00012879,2]
[326932974,1715614243784,-500.0,0.00012879,2]
[326932975,1715614243794,-500.0,0.00012879,2]
[326932976,1715614243803,-500.0,0.00012879,2]
[326932977,1715614243812,-500.0,0.00012879,2]
[326932978,1715614243821,-500.0,0.00012879,2]
[326932979,1715614243831,-500.0,0.00012879,2]
[326932980,1715614243840,-643.79,0.00012879,2]
[326932981,1715614243849,-577.65,0.00012879,2]
[326932982,1715614243859,-500.0,0.00012879,2]
[326932985,1715614243868,-500.0,0.00012879,2]
[326932988,1715614243877,-500.0,0.00012879,2]
[326932991,1715614243888,-562.68802386,0.00012879,2]
[326932994,1715614243898,-500.0,0.00012879,2]
[326932997,1715614243907,-500.0,0.00012879,2]
[326933000,1715614243917,-277.74017295,0.00012879,2]
[326933003,1715614243926,-500.0,0.00012879,2]
[326933005,1715614243935,-500.0,0.00012879,2]
[326933007,1715614243945,-500.0,0.00012879,2]
[326933008,1715614243954,-500.0,0.00012879,2]
[326933009,1715614243963,-500.0,0.00012879,2]
[326933010,1715614243973,-536.01984776,0.00012879,2]
[326933011,1715614243982,-233.41,0.00012879,2]
[326933012,1715614243991,-380.74,0.00012879,2]
[326933013,1715614244002,-500.0,0.00012879,2]
[326933014,1715614244011,-407.2,0.00012879,2]
[326933015,1715614244021,-500.0,0.00012879,2]
[326933016,1715614244031,-598.02963012,0.00012879,2]
[326933017,1715614244040,-500.0,0.00012879,2]
[326933018,1715614244050,-500.0,0.00012879,2]
[326933019,1715614244059,-500.0,0.00012879,2]
[326933020,1715614244069,-500.0,0.00012879,2]
[326933021,1715614244078,-500.0,0.00012879,2]
[326933022,1715614244088,-500.0,0.00012879,2]
[326933023,1715614244097,-369.4372414,0.00012879,2]
[326933024,1715614244106,-500.0,0.00012879,2]
[326933025,1715614244116,-500.0,0.00012879,2]
[326933026,1715614244125,-500.0,0.00012879,2]
[326933027,1715614244136,-2258.03,0.00012879,2]
[326933028,1715614244145,-2258.03,0.00012879,2]
[326933029,1715614244154,-2258.03,0.00012879,2]
[326933030,1715614244164,-2258.03,0.00012879,2]
[326933031,1715614244174,-2258.03,0.00012879,2]
[326933032,1715614244183,-2258.03,0.00012879,2]
[326933033,1715614244192,-2258.03,0.00012879,2]
[326933034,1715614244201,-2258.03,0.00012879,2]
[326933035,1715614244211,-2258.03,0.00012879,2]
[326933036,1715614244220,-500.0,0.00012879,2]
[326933037,1715614244229,-500.0,0.00012879,2]
[326933038,1715614244238,-500.0,0.00012879,2]
[326933039,1715614244247,-500.0,0.00012879,2]
[326933040,1715614244256,-500.0,0.00012879,2]
[326933041,1715614244265,-500.0,0.00012879,2]
[326933042,1715614244274,-564.06,0.00012879,2]
[326933043,1715614244284,-500.0,0.00012879,2]
[326933044,1715614244293,-564.06,0.00012879,2]
[326933045,1715614244303,-309.11,0.00012879,2]
[326933046,1715614244312,-564.06,0.00012879,2]
[326933047,1715614244321,-564.06,0.00012879,2]
[326933048,1715614244330,-564.06,0.00012879,2]
[326933049,1715614244339,-564.06,0.00012879,2]
[326933050,1715614244349,-564.06,0.00012879,2]
[326933051,1715614244358,-564.06,0.00012879,2]
[326933052,1715614244368,-1822.74,0.00012879,2]
[326933053,1715614244377,-1822.74,0.00012879,2]
[326933054,1715614244389,-1822.74,0.00012879,2]
[326933055,1715614244398,-1822.74,0.00012879,2]
[326933056,1715614244408,-1822.74,0.00012879,2]
[326933057,1715614244417,-1822.74,0.00012879,2]
[326933058,1715614244426,-1822.74,0.00012879,2]
[326933059,1715614244435,-1822.74,0.00012879,2]
[326933060,1715614244444,-1822.74,0.00012879,2]
[326933061,1715614244455,-653.36,0.00012879,2]
[326933062,1715614244464,-653.36,0.00012879,2]
[326933063,1715614244473,-653.36,0.00012879,2]
[326933064,1715614244482,-653.36,0.00012879,2]
[326933065,1715614244492,-653.36,0.00012879,2]
[326933066,1715614244501,-653.36,0.00012879,2]
[326933067,1715614244510,-653.36,0.00012879,2]
[326933068,1715614244519,-653.36,0.00012879,2]
[326933069,1715614244530,-830.0,0.0001288,2]
[326933070,1715614244539,-497375.50892386,0.0001288,2]
[326933071,1715614244562,-1121.01309545,0.0001288,2]
[326933072,1715614244711,-953.71817335,0.0001288,2]
[326933073,1715614244723,-9524.42037583,0.0001288,2]
[326933082,1715614244818,-294.14994472,0.00012394,2]
[326933083,1715614245786,-764.85005528,0.00012394,2]
[326933084,1715614245796,-1412.83456048,0.00012878,2]
[326933085,1715614245805,-5225.52623861,0.0001288,2]
[326933086,1715614245817,-4043.23692891,0.0001288,2]
[326933087,1715614245828,-1654.36341408,0.0001288,2]
[326933088,1715614245839,-284.83040661,0.0001288,2]
[326933089,1715614245850,-293.30521316,0.0001288,2]
[326933115,1715614248019,-255.41169921,0.0001288,2]
[326933116,1715614248031,-1245.51465202,0.0001288,2]
[326933117,1715614248043,-1885.96568,0.0001288,2]
[326933118,1715614248055,-3561.35300949,0.0001288,2]
[326933119,1715614248065,-252360.38199998,0.0001288,2]
[326933120,1715614265601,700.0,0.00011506,2]
[326933121,1715614275831,600.0,0.00011506,2]
[326933123,1715614466360,2778.61985754,0.00011654,2]
[326933124,1715614482407,168.49973797,0.00011678,2]
[326933125,1715614568496,10443.91560679,0.0003,120]
[326933137,1715614796276,170.68,9.377e-05,2]
[326933139,1715614846631,513.28,0.00011623,2]
[326933140,1715614967825,250.0,0.00011613,2]
[326933141,1715614978782,212.82,0.00011569,2]
[326933148,1715615327857,154.3,0.00011555,2]
[326933156,1715615400542,589.37,0.00011564,2]
[326933157,1715615400620,750.52330383,0.00011563,2]
[326933162,1715615431424,-155.0,0.00011749,2]
[326933163,1715615431434,-533.05127413,0.0001175,2]
[326933164,1715615431444,-163.36,0.00011778,2]
[326933165,1715615431454,-168.49973797,0.000118,2]
[326933166,1715615431463,-200.0,0.000119,4]
[326933167,1715615431473,-500.0,0.00012,4]
[326933168,1715615431482,-150.0,0.00012082,2]
[326933169,1715615431492,-176.2873,0.000121,2]
[326933170,1715615431502,-800.0,0.000121,4]
[326933171,1715615431512,-1100.0,0.000122,4]
[326933172,1715615431522,-959.36378921,0.00012234,2]
[326933173,1715615431531,-1549.30241842,0.00012234,7]
[326933174,1715615431543,-932.67160565,0.00012234,7]
[326933175,1715615431553,-523.56,0.000123,2]
[326933176,1715615431562,-247.08,0.000123,2]
[326933177,1715615431572,-1400.0,0.000123,4]
[326933178,1715615431581,-700.0,0.00012328,2]
[326933179,1715615431591,-600.0,0.00012328,2]
[326933180,1715615431602,-184.570634,0.00012366,2]
[326933181,1715615431612,-221.484761,0.00012366,2]
[326933182,1715615431622,-2222.22722233,0.00012366,2]
[326933183,1715615431634,-798.12958754,0.00012366,2]
[326933184,1715615431646,-2877.98319013,0.00012366,2]
[326933185,1715615431655,-5693.6510035,0.00012366,2]
[326933186,1715615431666,-1099.33301702,0.00012366,2]
[326933187,1715615431678,-452.75892829,0.00012366,2]
[326933188,1715615431689,-22754.24705119,0.00012366,2]
[326933189,1715615431699,-8306.82,0.00012366,2]
[326933190,1715615431708,-1206.97,0.00012366,2]
[326933191,1715615431717,-19999.99,0.00012366,2]
[326933192,1715615431726,-150.0,0.00012395,2]
[326933193,1715615431738,-499.99,0.00012396,2]
[326933194,1715615431747,-200.0,0.000124,4]
[326933195,1715615431756,-2458.93688736,0.00012428,2]
[326933196,1715615431767,-972.0,0.00012438,2]
[326933197,1715615431778,-2158.0,0.00012438,2]
[326933198,1715615431789,-1399.0,0.00012438,2]
[326933199,1715615431799,-1226.0,0.00012438,2]
[326933201,1715615431808,-1261.0,0.00012438,2]
[326933203,1715615431817,-1790.0,0.00012438,2]
[326933205,1715615431826,-543.0,0.00012438,2]
[326933207,1715615431835,-810.0,0.00012438,2]
[326933208,1715615431844,-422.0,0.00012438,2]
[326933209,1715615431854,-439.619,0.00012438,2]
[326933210,1715615431863,-617.615,0.00012438,2]
[326933211,1715615431872,-164.0,0.00012438,2]
[326933212,1715615431882,-1646.0,0.00012438,2]
[326933213,1715615431891,-2434.0,0.00012438,2]
[326933214,1715615431900,-151.893,0.00012438,2]
[326933215,1715615431911,-215.0,0.00012438,2]
[326933217,1715615431924,-1138.0,0.00012438,2]
[326933219,1715615431934,-3157.0,0.00012438,2]
[326933222,1715615431943,-445.658,0.00012438,2]
[326933225,1715615431953,-293.431,0.00012438,2]
[326933228,1715615431961,-150.878,0.00012438,2]
[326933231,1715615431971,-5911.0,0.00012438,2]
[326933234,1715615431980,-5885.194,0.00012438,2]
[326933237,1715615431989,-299.747,0.00012438,2]
[326933239,1715615432001,-153.317,0.00012438,2]
[326933241,1715615432010,-155.59,0.00012438,2]
[326933242,1715615432019,-161.197,0.00012438,2]
[326933243,1715615432028,-37836.0,0.00012438,2]
[326933244,1715615432037,-164.532,0.00012438,2]
[326933245,1715615432047,-219.0,0.00012438,2]
[326933246,1715615432056,-153.762,0.00012438,2]
[326933247,1715615432065,-318.366,0.00012438,2]
[326933248,1715615432074,-150.0,0.00012447,2]
[326933249,1715615432083,-351.39,0.000125,2]
[326933250,1715615432092,-150.0,0.000125,2]
[326933251,1715615432102,-523.56,0.000125,2]
[326933252,1715615432111,-523.56,0.000125,2]
[326933253,1715615432121,-200.0,0.000125,4]
[326933254,1715615432131,-150.0,0.000125,2]
[326933255,1715615432141,-155.0,0.00012519,2]
[326933256,1715615432150,-221.484761,0.0001252,2]
[326933257,1715615432160,-150.0,0.00012552,2]
[326933258,1715615432169,-206.989542,0.00012568,2]
[326933259,1715615432180,-200.0,0.000126,4]
[326933260,1715615432189,-500.0,0.00012602,2]
[326933261,1715615432199,-218.19260727,0.00012602,2]
[326933262,1715615432208,-500.0,0.00012602,2]
[326933263,1715615432218,-150.0,0.00012606,2]
[326933264,1715615432227,-150.0,0.00012606,2]
[326933265,1715615432237,-150.0,0.00012608,2]
[326933266,1715615432246,-150.0,0.00012613,2]
[326933267,1715615432256,-150.0,0.00012618,2]
[326933268,1715615432265,-3499.0404575,0.00012618,2]
[326933269,1715615432275,-150.0,0.00012635,2]
[326933270,1715615432284,-150.0,0.00012639,2]
[326933271,1715615432293,-150.0,0.00012645,2]
[326933272,1715615432303,-150.0,0.00012645,2]
[326933273,1715615432314,-150.0,0.00012648,2]
[326933274,1715615432323,-150.0,0.00012651,2]
[326933275,1715615432332,-150.0,0.00012659,2]
[326933276,1715615432342,-150.0,0.00012665,2]
[326933277,1715615432351,-150.0,0.00012666,2]
[326933278,1715615432360,-150.0,0.00012671,2]
[326933279,1715615432370,-221.484761,0.00012675,2]
[326933280,1715615432379,-184.570634,0.00012675,2]
[326933281,1715615432388,-5088.5566,0.00012679,2]
[326933282,1715615432397,-150.0,0.00012685,2]
[326933283,1715615432406,-150.0,0.00012693,2]
[326933284,1715615432416,-150.0,0.00012694,2]
[326933285,1715615432426,-150.0,0.00012697,2]
[326933286,1715615432436,-100000.0,0.000127,2]
[326933287,1715615432446,-10282.8307,0.000127,2]
[326933288,1715615432455,-895.9951,0.000127,2]
[326933289,1715615432464,-200.0,0.000127,4]
[326933290,1715615432474,-150.0,0.00012706,2]
[326933291,1715615432483,-150.0,0.00012707,2]
[326933292,1715615432492,-150.0,0.00012709,2]
[326933293,1715615432502,-150.0,0.00012711,2]
[326933294,1715615432511,-242.98211896,0.00012716,2]
[326933295,1715615432520,-150.0,0.00012719,2]
[326933296,1715615432529,-2500.0,0.00012721,2]
[326933297,1715615432541,-150.0,0.00012722,2]
[326933298,1715615432551,-150.0,0.0001273,2]
[326933299,1715615432560,-200.0,0.00012737,2]
[326933300,1715615432571,-1000.0,0.00012737,2]
[326933301,1715615432581,-500.0,0.00012737,2]
[326933302,1715615432590,-150.0,0.00012741,2]
[326933303,1715615432600,-150.0,0.00012743,2]
[326933304,1715615432610,-158.1095261,0.00012749,2]
[326933305,1715615432620,-12646.59177514,0.0001275,2]
[326933306,1715615432630,-7500.0,0.0001275,2]
[326933307,1715615432851,-234.20378897,0.00012751,2]
[326933308,1715615432862,-179.06200612,0.00012752,2]
[326933309,1715615432872,-150.0,0.00012753,2]
[326933310,1715615432883,-150.0,0.00012755,2]
[326933311,1715615432894,-171.03103542,0.00012756,2]
[326933312,1715615432904,-337.13261293,0.00012756,2]
[326933313,1715615432913,-150.0,0.00012757,2]
[326933314,1715615432928,-150.0,0.00012763,2]
[326933315,1715615432938,-150.0,0.00012763,2]
[326933316,1715615432947,-150.0,0.00012765,2]
[326933317,1715615432958,-150.0,0.00012766,2]
[326933318,1715615432967,-150.0,0.00012774,2]
[326933319,1715615432976,-150.0,0.00012775,2]
[326933320,1715615432986,-150.0,0.00012775,2]
[326933321,1715615432997,-10000.0,0.00012779,2]
[326933322,1715615433006,-150.0,0.00012779,2]
[326933323,1715615433016,-2046.9704,0.0001278,2]
[326933324,1715615433025,-173.1639208,0.0001278,2]
[326933325,1715615433034,-1324.91057578,0.0001278,2]
[326933326,1715615433044,-173.94109076,0.0001278,2]
[326933327,1715615433054,-150.0,0.00012781,2]
[326933328,1715615433064,-1324.91057575,0.00012791,2]
[326933329,1715615433073,-150.0,0.00012791,2]
[326933330,1715615433088,-150.0,0.00012794,2]
[326933331,1715615433097,-150.0,0.00012797,2]
[326933332,1715615433107,-859.0,0.000128,4]
[326933333,1715615433116,-1324.91057575,0.00012802,2]
[326933334,1715615433126,-150.0,0.00012807,2]
[326933335,1715615433135,-1324.91057575,0.00012813,2]
[326933336,1715615433144,-150.0,0.00012813,2]
[326933337,1715615433153,-150.0,0.00012819,2]
[326933338,1715615433162,-51421.51969223,0.0001282,2]
[326933339,1715615433172,-150.0,0.0001282,2]
[326933340,1715615433182,-150.0,0.00012823,2]
[326933341,1715615433192,-1324.91057575,0.00012824,2]
[326933342,1715615433202,-179.06200611,0.00012826,2]
[326933343,1715615433215,-221.484761,0.0001283,2]
[326933344,1715615433224,-1324.91057575,0.00012835,2]
[326933345,1715615433234,-150.0,0.00012836,2]
[326933346,1715615433244,-150.0,0.00012836,2]
[326933347,1715615433253,-150.0,0.00012839,2]
[326933348,1715615433263,-173.94109076,0.0001284,2]
[326933349,1715615433272,-1324.91057575,0.00012845,2]
[326933350,1715615433281,-365.36565537,0.00012848,2]
[326933351,1715615433291,-215.88316688,0.00012849,2]
[326933352,1715615433301,-766.0,0.0001285,2]
[326933353,1715615433311,-192015.97192839,0.0001285,5]
[326933354,1715615433361,-4560.97252455,0.0001285,5]
[326933355,1715615433373,-334.39098752,0.0001285,5]
[326933356,1715615433400,-3596.406,0.0001285,5]
[326933357,1715615433411,-334.50747262,0.0001285,5]
[326933369,1715615437757,-751.676,0.00011749,2]
[326933370,1715615437768,-1248.324,0.00011749,2]
[326933371,1715615437778,-206.764,0.00012438,2]
[326933372,1715615437787,-150.0,0.00012604,2]
[326933373,1715615437796,-150.0,0.00012656,2]
[326933374,1715615437806,-5046.50049146,0.0001278,2]
[326933375,1715615438003,-611.91094437,0.0001278,2]
[326933376,1715615438013,-2848.98793563,0.0001285,5]
[326933415,1715615439607,-2992.5896,0.0001285,5]
[326933420,1715615439757,-3536.44282716,0.0001285,5]
[326933421,1715615439769,-874.40717284,0.0001285,5]
[326933422,1715615439944,-15372.49999999,0.0001285,5]
[326933423,1715615440074,-1005.20950199,0.0001285,5]
[326933424,1715615440085,-961.85029883,0.0001285,5]
[326933425,1715615440097,-511.03988857,0.0001285,5]
[326933480,1715615442618,-740.63153186,0.0001284,2]
[326933499,1715615442967,-714.0,0.0001284,2]
[326933500,1715615442979,-4203.77990396,0.0001284,2]
[326933502,1715615442988,-238202.04685052,0.0001285,5]
[326933504,1715615443001,-366.19513937,0.0001285,5]
[326933585,1715615445594,-155.0,0.00012849,2]
[326933586,1715615445607,-6048.69547629,0.0001285,5]
[326933587,1715615445830,-414.36,0.0001285,5]
[326933588,1715615445843,-2814.5722,0.0001285,5]
[326933589,1715615445856,-3675.78,0.0001285,5]
[326933590,1715615445887,-499.00216356,0.0001285,5]
[326933958,1715615486533,752.97083876,0.00011563,2]
[326933959,1715615538280,969.40394336,0.00011563,2]
[326933960,1715615554271,968.74873644,0.00011563,2]
[326933961,1715615572303,295.93128124,0.00011563,2]
[326933965,1715616003012,150.0,0.00011563,2]
[326933966,1715616003236,150.0,0.00011563,2]
[326933967,1715616003458,150.0,0.00011563,2]
[326933968,1715616003676,150.0,0.00011563,2]
[326933969,1715616003926,150.0,0.00011563,2]
[326933970,1715616004137,150.0,0.00011563,2]
[326933971,1715616004526,150.0,0.00011563,2]
[326933972,1715616004733,150.0,0.00011563,2]
[326933973,1715616005200,164.29228075,0.00011563,2]
[326933974,1715616027007,944.72501751,0.00011563,2]
[326933975,1715616031888,150.0,0.00029419,120]
[326933976,1715616055459,1700.0,0.0003,120]
[326933977,1715616056409,47572.20168884,0.00011563,2]
[326933978,1715616090877,150.0,0.00029763,120]
[326933979,1715616114952,944.72501751,0.00011563,2]
[326933980,1715616130946,607.32934885,0.00011563,2]
[326933981,1715616150849,150.0,0.00029874,120]
[326934014,1715616631772,-250.0,0.00011777,2]
[326934015,1715616631781,-288.13,0.00011777,2]
[326934016,1715616631791,-2435.98277,0.00011777,2]
[326934060,1715616637769,-7564.01723,0.00011777,2]
[326934061,1715616637778,-471.5,0.00011783,2]
[326934062,1715616637788,-664.85,0.00011824,2]
[326934063,1715616637800,-528.5,0.00011836,2]
[326934064,1715616637810,-158.69,0.00011844,2]
[326934065,1715616637819,-155.68,0.000119,2]
[326934066,1715616637829,-1395.0,0.00012397,2]
[326934067,1715616637838,-1893.963,0.00012397,2]
[326934068,1715616637848,-1226.0,0.00012397,2]
[326934069,1715616637858,-543.0,0.00012397,2]
[326934070,1715616637867,-1261.0,0.00012397,2]
[326934071,1715616637876,-1790.0,0.00012397,2]
[326934072,1715616637887,-806.0,0.00012397,2]
[326934073,1715616637896,-612.0,0.00012397,2]
[326934074,1715616637905,-438.0,0.00012397,2]
[326934075,1715616637914,-422.0,0.00012397,2]
[326934076,1715616637924,-1646.0,0.00012397,2]
[326934077,1715616637934,-3153.0,0.00012397,2]
[326934078,1715616637944,-215.0,0.00012397,2]
[326934079,1715616637953,-1138.0,0.00012397,2]
[326934080,1715616637962,-444.0,0.00012397,2]
[326934081,1715616637972,-3490.71691882,0.00012397,2]
[326934082,1715616637984,-2259.28308118,0.00012397,2]
[326934083,1715616637993,-13526.96691882,0.00012397,2]
[326934084,1715616638004,-22299.17008118,0.00012397,2]
[326934085,1715616638014,-5911.0,0.00012397,2]
[326934086,1715616638024,-150.0,0.00012438,2]
[326934087,1715616638034,-294.3,0.00012438,2]
[326934089,1715616638045,-150.0,0.00012438,2]
[326934091,1715616638055,-1090.2232231,0.00012593,2]
[326934115,1715616639859,-152.49,0.00011925,2]
[326934116,1715616639868,-127.51,0.00012593,2]
[326934117,1715616639880,-446.55370875,0.00012593,2]
[326934118,1715616639890,-358.0379,0.000126,2]
[326934119,1715616639900,-1952.09,0.000126,2]
[326934120,1715616639914,-16228.48,0.000126,2]
[326934121,1715616639925,-500.0,0.00012602,2]
[326934122,1715616639936,-500.0,0.00012602,2]
[326934123,1715616639949,-600.0,0.00012602,2]
[326934124,1715616639960,-536.4121478,0.00012602,2]
[326934125,1715616639972,-150.0,0.00012693,2]
[326934126,1715616639983,-554.211,0.00012699,2]
[326934127,1715616639995,-150.0,0.0001271,2]
[326934128,1715616640005,-499.99,0.0001275,2]
[326934129,1715616640015,-352.10880613,0.0001275,2]
[326934130,1715616640025,-542.2271,0.0001275,2]
[326934131,1715616640035,-599.9348,0.0001275,2]
[326934132,1715616640046,-1335.2156,0.0001275,2]
[326934133,1715616640058,-200.0,0.00012762,2]
[326934134,1715616640069,-1000.0,0.00012762,2]
[326934135,1715616640080,-500.0,0.00012762,2]
[326934136,1715616640091,-3227.72538479,0.0001278,2]
[326934137,1715616640102,-179.20571654,0.0001278,2]
[326934138,1715616640113,-3227.72538473,0.00012791,2]
[326934139,1715616640124,-5237.0505,0.00012799,2]
[326934140,1715616640136,-152.04981469,0.000128,2]
[326934141,1715616640147,-352.1088061,0.000128,2]
[326934142,1715616640158,-3227.72538473,0.00012802,2]
[326934143,1715616640169,-3227.72538473,0.00012813,2]
[326934144,1715616640181,-3227.72538473,0.00012824,2]
[326934145,1715616640193,-3227.72538473,0.00012835,2]
[326934146,1715616640205,-179.20571654,0.0001284,2]
[326934147,1715616640216,-3227.72538473,0.00012845,2]
[326934148,1715616640227,-303.78831594,0.00012849,2]
[326934149,1715616640239,-10765.02918279,0.00012849,2]
[326934150,1715616640249,-519619.91626008,0.0001285,5]
[326934151,1715616640260,-826.56161,0.0001285,2]
[326934152,1715616640271,-152.04981467,0.0001285,2]
[326934153,1715616640282,-352.1088061,0.0001285,2]
[326934154,1715616640293,-3227.72538473,0.00012856,2]
[326934155,1715616640310,-4589.16668298,0.00012866,2]
[326934156,1715616640321,-3227.72538473,0.00012867,2]
[326934157,1715616640333,-400.0,0.0001287,2]
[326934158,1715616640343,-596.90903168,0.00012876,2]
[326934159,1715616640354,-500.0,0.00012876,2]
[326934160,1715616640365,-500.0,0.00012876,2]
[326934161,1715616640379,-500.0,0.00012876,2]
[326934162,1715616640390,-500.0,0.00012876,2]
[326934163,1715616640401,-192.79117258,0.00012876,2]
[326934164,1715616640412,-500.0,0.00012876,2]
[326934165,1715616640423,-500.0,0.00012876,2]
[326934166,1715616640434,-500.0,0.00012876,2]
[326934167,1715616640444,-500.0,0.00012876,2]
[326934168,1715616640455,-500.0,0.00012876,2]
[326934169,1715616640464,-500.0,0.00012876,2]
[326934170,1715616640475,-500.0,0.00012876,2]
[326934171,1715616640486,-500.0,0.00012876,2]
[326934172,1715616640497,-500.0,0.00012876,2]
[326934173,1715616640507,-500.0,0.00012876,2]
[326934174,1715616640518,-476.97376091,0.00012876,2]
[326934175,1715616640529,-951.95,0.00012876,2]
[326934176,1715616640540,-951.95,0.00012876,2]
[326934177,1715616640553,-951.95,0.00012876,2]
[326934178,1715616640563,-364.44704928,0.00012876,2]
[326934179,1715616640574,-500.0,0.00012876,2]
[326934180,1715616640586,-500.0,0.00012876,2]
[326934181,1715616640597,-500.0,0.00012876,2]
[326934182,1715616640607,-1408.1,0.00012876,2]
[326934183,1715616640618,-1408.1,0.00012876,2]
[326934184,1715616640629,-1408.1,0.00012876,2]
[326934185,1715616640641,-1660.05,0.00012876,2]
[326934186,1715616640653,-1660.05,0.00012876,2]
[326934187,1715616640665,-1660.05,0.00012876,2]
[326934188,1715616640676,-627.8,0.00012876,2]
[326934189,1715616640687,-3320.94,0.00012876,2]
[326934190,1715616640697,-3320.94,0.00012876,2]
[326934191,1715616640707,-3320.94,0.00012876,2]
[326934192,1715616640717,-500.0,0.00012876,2]
[326934193,1715616640728,-500.0,0.00012876,2]
[326934194,1715616640737,-626.2465837,0.00012876,2]
[326934195,1715616640747,-500.0,0.00012876,2]
[326934196,1715616640757,-500.0,0.00012876,2]
[326934197,1715616640767,-500.0,0.00012876,2]
[326934198,1715616640778,-1223.1,0.00012876,2]
[326934199,1715616640790,-1223.1,0.00012876,2]
[326934200,1715616640802,-1223.1,0.00012876,2]
[326934201,1715616640813,-1226.6,0.00012876,2]
[326934202,1715616640824,-1226.6,0.00012876,2]
[326934203,1715616640836,-1226.6,0.00012876,2]
[326934204,1715616640847,-500.0,0.00012876,2]
[326934205,1715616640856,-500.0,0.00012876,2]
[326934206,1715616640866,-500.0,0.00012876,2]
[326934207,1715616640877,-987.32,0.00012876,2]
[326934208,1715616640888,-987.32,0.00012876,2]
[326934209,1715616640899,-987.32,0.00012876,2]
[326934210,1715616640909,-500.0,0.00012876,2]
[326934211,1715616640920,-500.0,0.00012876,2]
[326934212,1715616640932,-500.0,0.00012876,2]
[326934213,1715616640943,-68774.0,0.00012877,2]
[326934214,1715616640954,-500.0,0.00012877,2]
[326934215,1715616640965,-158.05804344,0.00012878,2]
[326934216,1715616640975,-1750.0,0.00012878,2]
[326934217,1715616640986,-18396.68014826,0.00012878,2]
[326934218,1715616640997,-318.74671446,0.00012878,2]
[326934219,1715616641007,-261.77595692,0.00012878,2]
[326934220,1715616641017,-324.42510247,0.00012878,2]
[326934221,1715616641027,-1153.90392012,0.00012878,2]
[326934222,1715616641037,-661.6241208,0.00012878,2]
[326934223,1715616641048,-336.05422805,0.00012878,2]
[326934224,1715616641058,-155.0,0.00012878,2]
[326934225,1715616641069,-155.0,0.00012878,2]
[326934226,1715616641079,-377.35579036,0.00012878,2]
[326934227,1715616641089,-488.15026758,0.00012878,2]
[326934228,1715616641099,-362.02899713,0.00012878,2]
[326934229,1715616641109,-951.95,0.00012878,2]
[326934230,1715616641118,-500.0,0.00012878,2]
[326934231,1715616641128,-1408.1,0.00012878,2]
[326934232,1715616641140,-1660.05,0.00012878,2]
[326934233,1715616641150,-500.0,0.00012878,2]
[326934234,1715616641160,-1223.1,0.00012878,2]
[326934235,1715616641170,-1226.6,0.00012878,2]
[326934236,1715616641180,-602.03563719,0.00012878,2]
[326934237,1715616641190,-987.32,0.00012878,2]
[326934238,1715616641200,-3227.72538473,0.00012878,2]
[326934239,1715616641210,-269.03199688,0.00012879,2]
[326934240,1715616641221,-709.02554464,0.00012879,2]